bitfinex/quotes_ETHUSD_20240530
["timestamp","ask_amount","ask_price","bid_price","bid_amount"]
[1717055895516,1.61151,3723.2,3722.0,0.7581149]
[1717055895845,1.0,3723.8,3722.5,6.2364]
[1717055895846,1.61128,3723.8,3722.5,6.2364]
[1717055896803,7.38,3724.3,3722.7,1.61172]
[1717055897009,4.29789222,3724.2,3722.7,1.61172]
[1717055897211,4.29789222,3724.2,3722.0,0.7581149]
[1717055897212,2.807,3721.3,3720.0,6.03686803]
[1717055897406,1.61241,3721.2,3720.2,4.0]
[1717055897610,1.61187,3722.4,3720.7,1.61259]
[1717055897907,1.61187,3722.4,3720.7,2.037549]
[1717055897908,1.161187,3722.3,3720.7,2.037549]
[1717055898160,1.61187,3722.4,3720.8,6.6389]
[1717055898308,0.58139398,3723.0,3720.9,1.61249]
[1717055898512,1.29789222,3722.9,3720.9,4.24949]
[1717055898849,1.61159,3723.1,3721.5,1.61224]
[1717055899047,5.19252292,3723.8,3721.8,1.61209]
[1717055899358,1.91714451,3723.7,3722.1,1.61197]
[1717055900802,1.0,3723.5,3722.1,1.61197]
[1717055901007,1.61134,3723.6,3722.1,1.61197]
[1717055901008,1.29789222,3723.4,3722.1,1.61197]
[1717055901746,1.61107,3724.3,3722.3,1.6119]
[1717055901913,1.29789222,3724.2,3722.7,1.61172]
[1717055902362,1.61107,3724.3,3723.0,6.1647]
[1717055902543,1.075973,3724.6,3723.1,1.61154]
[1717055904317,2.90884222,3724.5,3723.1,1.61154]
[1717055905005,1.61095,3724.5,3723.1,1.61154]
[1717055905208,1.61095,3724.5,3723.2,0.777624]
[1717055906362,1.61104,3724.3,3723.0,6.1647]
[1717055906529,1.29789222,3724.2,3723.0,6.1647]
[1717055906847,1.61104,3724.3,3723.0,7.77628]
[1717055907173,1.075973,3724.6,3723.0,7.77628]
[1717055907453,1.29789222,3724.6,3723.2,1.61151]
[1717055908711,1.61081,3724.9,3723.2,1.61151]
[1717055909012,1.29789222,3724.8,3723.2,1.61151]
[1717055909922,1.87884551,3724.8,3723.2,1.61151]
[1717055910141,1.83253394,3724.8,3723.3,0.8553838]
[1717055910454,1.25158065,3724.8,3723.3,0.8553838]
[1717055911019,1.61081,3724.9,3723.6,6.6613]
[1717055911251,2.90870222,3724.9,3723.6,6.6613]
[1717055912137,2.90870222,3724.9,3723.7,1.61128]
[1717055912340,2.90870222,3724.9,3723.8,0.827258]
[1717055912739,1.61055,3725.5,3723.9,1.61119]
[1717055912933,1.29789222,3725.4,3723.9,1.61119]
[1717055913549,1.87874429,3725.4,3723.9,1.61119]
[1717055915353,1.29789222,3725.4,3723.9,1.61119]
[1717055915657,1.68873644,3725.4,3724.0,0.2438448]
[1717055915831,2.26957995,3725.4,3724.1,1.61112]
[1717055916235,1.61055,3725.5,3724.1,1.61112]
[1717055917234,2.90844222,3725.5,3724.1,1.61112]
[1717055917434,1.29789222,3725.4,3724.1,1.61112]
[1717055920662,1.61055,3725.5,3724.1,1.61112]
[1717055920851,1.61055,3725.5,3724.3,1.61102]
[1717055921063,1.61055,3725.5,3724.3,2.45975648]
[1717055922673,0.58084728,3725.9,3724.3,2.45975648]
[1717055922861,1.29789222,3725.8,3724.3,2.45975648]
[1717055923068,0.58084728,3725.9,3724.3,2.45975648]
[1717055923575,1.61031,3726.0,3724.3,2.45975648]
[1717055923771,2.90820222,3726.0,3724.7,1.61084]
[1717055924072,0.58084728,3725.9,3724.7,1.61084]
[1717055924836,0.58084728,3725.9,3725.0,1.61072]
[1717055925074,1.61031,3726.0,3725.0,1.61072]
[1717055925603,0.58084728,3726.4,3725.0,1.61072]
[1717055925887,1.0,3727.0,3724.8,6.4126]
[1717055925888,0.58084728,3726.7,3725.1,2.10022422]
[1717055926035,0.58084728,3726.7,3725.2,6.4706]
[1717055926231,1.0,3727.4,3725.2,6.4706]
[1717055926232,1.58084728,3727.4,3725.2,6.4706]
[1717055926561,1.0,3727.4,3725.2,6.4706]
[1717055926885,1.29789222,3727.3,3725.3,0.85708242]
[1717055927059,1.60988,3727.0,3725.9,1.61033]
[1717055927837,2.60999,3726.8,3725.4,6.2285]
[1717055928045,3.19083728,3726.8,3725.4,6.2285]
[1717055928251,1.61006,3726.6,3725.4,6.2285]
[1717055928937,1.61013,3726.4,3725.4,6.2285]
[1717055929137,1.29789222,3726.3,3725.4,6.2285]
[1717055929770,0.58084728,3726.3,3725.4,6.2285]
[1717055929976,1.61013,3726.4,3725.4,6.2285]
[1717055930135,0.58084728,3726.5,3725.5,0.62285]
[1717055930482,1.60991,3727.0,3725.6,1.61047]
[1717055930723,1.60991,3727.0,3725.5,0.62285]
[1717055930724,0.58084728,3727.4,3726.1,1.61025]
[1717055930895,1.60958,3727.7,3726.1,1.61025]
[1717055930896,0.58084728,3727.5,3726.1,1.61025]
[1717055931091,0.21904273,3727.4,3726.1,1.61025]
[1717055931296,1.60958,3727.7,3726.3,1.61016]
[1717055932556,1.60967,3727.5,3726.2,6.4142]
[1717055932835,1.60974,3727.3,3726.2,6.4142]
[1717055933040,3.48815111,3727.3,3726.2,6.4142]
[1717055933239,0.58051889,3727.2,3726.2,6.4142]
[1717055933443,0.34881511,3727.1,3726.2,6.4142]
[1717055933599,2.90780222,3727.0,3725.4,6.5934]
[1717055934001,1.61003,3726.7,3725.4,6.5934]
[1717055934236,1.29789222,3726.6,3725.4,6.5934]
[1717055934436,1.87841111,3726.6,3725.4,6.5934]
[1717055934645,0.34884411,3726.5,3725.4,6.5934]
[1717055935364,1.29789222,3726.4,3725.4,6.5934]
[1717055935950,2.637,3726.2,3724.7,6.7172]
[1717055936179,1.61029,3726.1,3724.7,6.7172]
[1717055936508,2.19080889,3726.1,3724.7,6.7172]
[1717055936707,1.61029,3726.1,3724.7,6.7172]
[1717055937303,1.29789222,3726.0,3724.7,6.7172]
[1717055937508,1.61035,3725.9,3724.7,6.7172]
[1717055937710,2.19086889,3725.9,3724.7,6.7172]
[1717055938537,2.19086889,3725.9,3724.0,1.8549848]
[1717055938736,2.19086889,3725.9,3724.1,6.7727]
[1717055938737,1.61049,3725.6,3724.1,6.7727]
[1717055939329,2.90838222,3725.6,3724.1,6.7727]
[1717055939810,0.58078462,3725.5,3724.1,6.7727]
[1717055940006,2.90838222,3725.6,3724.1,6.7727]
[1717055940328,0.9065042,3725.5,3724.1,6.7727]
[1717055942447,0.58077837,3725.5,3724.1,6.7727]
[1717055942628,1.61049,3725.6,3724.2,1.61106]
[1717055942955,1.29789222,3725.5,3724.2,1.61106]
[1717055943160,1.87866059,3725.5,3724.2,1.61106]
[1717055943731,0.58076837,3725.5,3724.2,1.61106]
[1717055943939,0.58076837,3725.5,3724.3,0.838376]
[1717055944139,1.61049,3725.6,3724.3,0.838376]
[1717055944324,1.61057,3725.4,3724.2,1.61106]
[1717055944653,2.90846222,3725.4,3724.1,6.7727]
[1717055944955,1.61068,3725.2,3724.1,6.7727]
[1717055945539,2.19144837,3725.2,3724.1,6.7727]
[1717055946754,0.58076837,3725.2,3724.1,6.7727]
[1717055946984,1.61043,3725.7,3724.2,0.67727]
[1717055947174,1.29789222,3725.6,3724.2,0.67727]
[1717055947479,1.87866059,3725.6,3724.2,0.67727]
[1717055947686,0.58081324,3725.6,3724.2,0.67727]
[1717055947983,2.19124324,3725.7,3724.3,1.61103]
[1717055948185,0.73700221,3725.6,3724.3,2.51713]
[1717055948383,2.19124324,3725.7,3724.3,2.51713]
[1717055948562,1.61043,3725.7,3724.3,2.51713]
[1717055949190,0.58081324,3726.1,3724.7,1.61085]
[1717055949387,0.58081324,3726.1,3724.7,2.90874222]
[1717055949688,1.61023,3726.2,3724.7,2.90874222]
[1717055949889,1.61023,3726.2,3725.0,1.61073]
[1717055951266,1.61023,3726.2,3724.8,0.29087422]
[1717055951267,2.637,3725.7,3724.3,0.9061]
[1717055951574,2.637,3725.7,3724.1,6.7727]
[1717055952113,1.61071,3725.1,3724.1,6.7727]
[1717055953401,1.61071,3725.1,3723.5,6.3198]
[1717055953984,2.90860222,3725.1,3723.5,6.3198]
[1717055954198,1.12735479,3725.0,3723.6,0.793125]
[1717055954401,1.12735479,3725.0,3723.6,2.09101722]
[1717055954402,0.58081324,3725.0,3723.6,2.09101722]
[1717055954603,1.61071,3725.1,3723.6,2.09101722]
[1717055954981,1.61071,3725.1,3723.7,1.29789222]
[1717055955765,0.58081324,3725.5,3723.9,1.61117]
[1717055955966,0.58081324,3725.5,3724.3,6.7558]
[1717055956287,1.0,3725.3,3723.0,7.03009121]
[1717055956486,2.634,3725.1,3723.0,8.36737]
[1717055956714,1.66129222,3725.0,3723.1,2.13462922]
[1717055956931,2.24208653,3725.0,3723.1,2.13462922]
[1717055957728,1.29789222,3724.1,3721.7,0.27434498]
[1717055957954,2.807,3724.9,3722.0,4.0]
[1717055957955,1.61174,3722.7,3722.0,4.0]
[1717055958071,1.61174,3722.7,3721.1,1.61242]
[1717055958266,1.29789222,3723.5,3721.5,1.61221]
[1717055958267,2.90930222,3723.5,3721.5,1.61221]
[1717055958513,2.90930222,3723.5,3721.6,6.747621]
[1717055958514,0.58121415,3723.4,3721.6,6.747621]
[1717055959475,4.24549,3723.3,3721.6,6.747621]
[1717055959681,4.24549,3723.3,3720.5,2.634]
[1717055959682,1.61167,3722.9,3721.0,6.1965]
[1717055959979,2.90956222,3722.9,3721.0,6.1965]
[1717055960403,2.90956222,3722.9,3721.1,1.61241]
[1717055960629,1.61167,3722.9,3721.1,1.61241]
[1717055961890,1.61167,3722.9,3721.2,1.29789222]
[1717055962094,1.61167,3722.9,3721.3,0.91068022]
[1717055962427,1.61167,3722.9,3721.4,1.29789222]
[1717055962817,1.61167,3722.9,3721.5,1.61223]
[1717055963148,1.61167,3722.9,3721.6,1.29789222]
[1717055963286,4.61137,3723.6,3721.7,1.61214]
[1717055963488,0.72244632,3723.5,3721.8,1.58889544]
[1717055964401,0.72244632,3723.5,3721.0,6.1965]
[1717055964402,6.4959,3722.1,3720.0,5.5]
[1717055964610,6.4959,3722.1,3720.2,1.29789222]
[1717055964611,2.634,3721.7,3720.2,1.29789222]
[1717055964808,2.634,3721.7,3720.1,0.05]
[1717055964809,1.61223,3721.6,3720.1,0.05]
[1717055965026,1.61234,3721.3,3720.1,0.05]
[1717055965247,1.29789222,3721.2,3720.1,0.05]
[1717055965605,1.90336322,3721.3,3720.1,0.05]
[1717055965800,1.61207,3722.0,3720.2,9.48750222]
[1717055966033,1.61178,3722.6,3720.7,1.61256]
[1717055966198,1.61178,3722.6,3721.1,1.6124]
[1717055966400,3.93189222,3723.4,3721.4,6.5768]
[1717055966401,1.61152,3723.2,3721.4,6.5768]
[1717055966636,2.90941222,3723.2,3721.5,0.94870222]
[1717055968819,1.61152,3723.2,3721.6,1.29789222]
[1717055969557,1.61152,3723.2,3721.7,1.61214]
[1717055969712,1.61152,3723.2,3721.8,1.29789222]
[1717055971322,2.90941222,3723.2,3721.5,0.94870222]
[1717055971532,1.61164,3723.0,3721.5,0.94870222]
[1717055973026,2.634,3723.4,3721.6,1.29789222]
[1717055973221,1.61135,3723.6,3721.6,1.29789222]
[1717055973536,5.90924222,3723.6,3721.6,1.29789222]
[1717055973928,5.90924222,3723.6,3721.7,1.61214]
[1717055974138,1.61143,3723.4,3722.0,1.612]
[1717055974334,1.61143,3723.4,3722.1,1.29789222]
[1717055975222,4.24519,3724.0,3722.2,1.61194]
[1717055975556,4.24519,3724.0,3722.5,1.61179]
[1717055975763,1.61119,3724.0,3722.6,1.58886044]
[1717055975999,1.61119,3724.0,3722.6,8.26256044]
[1717055976183,1.61119,3724.0,3722.7,1.61172]
[1717055976389,1.61119,3724.0,3722.8,1.29789222]
[1717055976557,7.38,3724.2,3722.9,1.61163]
[1717055976900,7.38,3724.2,3723.0,1.58884444]
[1717055977083,2.634,3724.5,3723.0,1.58884444]
[1717055977405,1.61091,3724.6,3723.1,1.61153]
[1717055977701,1.61091,3724.6,3723.2,1.29789222]
[1717055979806,1.61091,3724.6,3723.4,1.61142]
[1717055979970,1.61091,3724.6,3723.5,0.29093122]
[1717055981907,1.61091,3724.6,3722.8,1.61166]
[1717055982109,1.61091,3724.6,3722.9,1.29789222]
[1717055982296,0.58097536,3724.9,3722.9,3.0]
[1717055982297,1.61114,3724.1,3722.9,3.0]
[1717055982636,1.61114,3724.1,3722.8,1.61166]
[1717055982637,1.61114,3724.1,3722.8,4.61166]
[1717055982823,1.61114,3724.1,3722.9,1.15763282]
[1717055982979,1.61114,3724.1,3722.6,6.96466822]
[1717055983370,1.61114,3724.1,3722.6,8.26256044]
[1717055983680,1.61114,3724.1,3722.7,2.90962222]
[1717055984413,0.58103154,3724.4,3722.7,2.90962222]
[1717055984590,1.6109,3724.7,3722.7,2.90962222]
[1717055984788,1.6109,3724.7,3723.0,1.61159]
[1717055984979,1.6109,3724.7,3723.1,1.29789222]
[1717055985320,1.6109,3724.7,3723.2,1.61148]
[1717055985620,1.6109,3724.7,3723.3,1.29789222]
[1717055990437,1.6109,3724.7,3723.2,1.61148]
[1717055990611,1.61103,3724.4,3723.3,0.161148]
[1717055991378,2.85319315,3724.6,3722.8,0.98742904]
[1717055991379,1.61121,3724.0,3722.8,0.98742904]
[1717055992062,1.61121,3724.0,3722.9,1.29789222]
[1717055992398,0.58103154,3724.5,3723.0,1.6116]
[1717055992691,2.03176701,3724.6,3723.2,1.61151]
[1717055992966,1.61092,3724.6,3723.3,1.29789222]
[1717055993271,1.61092,3724.6,3723.4,0.29094022]
[1717056000310,1.61092,3724.6,3723.4,0.27823022]
[1717056000661,7.38,3725.0,3723.4,0.27823022]
[1717056000662,1.61111,3724.2,3723.4,0.27823022]
[1717056002577,1.61111,3724.2,3723.3,1.29789222]
[1717056002780,1.61111,3724.2,3721.9,6.6258]
[1717056002983,2.19206502,3724.2,3722.7,1.29789222]
[1717056004592,1.6115,3723.3,3722.6,0.29096822]
[1717056004795,1.6115,3723.3,3721.9,6.6258]
[1717056004966,1.6115,3723.3,3722.0,1.96047222]
[1717056005162,1.61188,3722.4,3720.9,1.61247]
[1717056005407,1.58095502,3724.2,3720.1,0.05]
[1717056005408,0.58095502,3723.1,3721.3,6.2003]
[1717056005605,0.58095502,3723.1,3720.3,1.61274]
[1717056005606,6.5245,3723.0,3720.3,1.61274]
[1717056005820,6.5245,3723.0,3720.5,1.61266]
[1717056005821,1.61201,3722.1,3720.5,1.61266]
[1717056007502,1.61218,3721.7,3720.2,6.2003]
[1717056007704,0.161218,3721.6,3720.2,7.09051691]
[1717056007951,0.161218,3721.6,3720.3,1.29789222]
[1717056008329,0.161218,3721.6,3720.2,7.09051691]
[1717056008330,1.6123,3721.4,3720.2,0.89021691]
[1717056008506,1.6123,3721.4,3720.1,1.125978]
[1717056009006,0.58095502,3721.6,3720.2,1.29789222]
[1717056009201,0.58095502,3722.4,3720.6,1.29789222]
[1717056009440,1.61178,3722.6,3721.0,1.61242]
[1717056009754,0.58095502,3723.2,3721.3,1.61231]
[1717056009948,2.19243502,3723.3,3721.6,1.6122]
[1717056010317,1.61171,3722.8,3721.2,6.4692]
[1717056010520,1.61181,3722.6,3721.0,1.61246]
[1717056010825,1.61191,3722.3,3721.0,1.61246]
[1717056011045,1.61191,3722.3,3721.1,1.29789222]
[1717056011445,6.603,3723.4,3720.3,3.79238702]
[1717056011446,0.58132561,3723.0,3721.3,6.2409]
[1717056011769,1.61139,3723.5,3721.7,1.61214]
[1717056011923,1.772529,3723.5,3721.9,1.61206]
[1717056012262,0.58126435,3723.9,3722.3,6.1861]
[1717056012464,0.58126435,3724.0,3722.4,2.90974222]
[1717056012631,1.61114,3724.1,3722.4,2.90974222]
[1717056013319,0.58126435,3724.5,3722.9,1.61162]
[1717056013552,2.634,3724.6,3723.0,1.29789222]
[1717056013553,3.21526435,3724.6,3723.0,1.29789222]
[1717056013757,1.61089,3724.7,3723.0,1.29789222]
[1717056013758,1.61089,3724.7,3723.1,0.29095122]
[1717056013961,1.61089,3724.7,3723.2,1.61151]
[1717056014272,1.61089,3724.7,3723.4,8.02172]
[1717056014452,1.61089,3724.7,3723.5,1.29789222]
[1717056014657,1.61089,3724.7,3723.4,8.02172]
[1717056014870,1.771979,3724.7,3723.5,0.802172]
[1717056015313,0.161089,3724.7,3723.2,1.61151]
[1717056015459,4.24471,3725.1,3723.4,1.61139]
[1717056015827,4.24471,3725.1,3723.5,1.29789222]
[1717056015956,1.61094,3724.6,3723.1,0.29095122]
[1717056016171,1.61094,3724.6,3723.2,1.29789222]
[1717056016366,4.24494,3724.6,3722.7,6.6266]
[1717056016617,2.634,3724.1,3722.2,1.61193]
[1717056016915,1.6114,3723.5,3721.6,1.61219]
[1717056017068,1.6114,3723.5,3721.1,4.0]
[1717056017069,6.7689,3722.9,3721.1,4.0]
[1717056017267,7.7689,3722.9,3720.9,6.2787]
[1717056017582,1.61179,3722.6,3720.9,6.2787]
[1717056017786,1.29789222,3722.5,3720.9,6.2787]
[1717056018498,1.61191,3722.3,3720.8,1.61254]
[1717056018696,1.61191,3722.3,3720.8,1.773794]
[1717056018697,1.58887244,3722.2,3720.8,1.773794]
[1717056019326,0.29098022,3722.2,3720.8,1.773794]
[1717056019465,1.61191,3722.3,3720.8,1.773794]
[1717056019670,8.38055,3722.9,3721.1,1.61239]
[1717056019868,9.67844222,3722.9,3721.1,2.91028222]
[1717056021341,1.61182,3722.5,3721.1,1.61239]
[1717056021573,1.29789222,3722.4,3720.8,0.161254]
[1717056021703,1.6121,3721.9,3720.5,1.61266]
[1717056021900,2.90999222,3721.9,3720.5,1.61266]
[1717056022299,1.61218,3721.7,3720.2,0.58356137]
[1717056022502,2.91007222,3721.7,3720.2,0.58356137]
[1717056022804,1.61218,3721.7,3720.3,1.29789222]
[1717056023004,7.38,3722.2,3721.0,1.61246]
[1717056023204,1.6119,3722.4,3721.0,1.61246]
[1717056023406,1.6119,3722.4,3720.5,3.0]
[1717056023407,1.612,3722.1,3720.5,1.8008]
[1717056023705,2.90989222,3722.1,3720.4,0.19314536]
[1717056024117,1.61212,3721.8,3720.4,0.19314536]
[1717056024322,0.29100122,3721.7,3720.3,1.61274]
[1717056024573,1.61221,3721.6,3720.3,1.61274]
[1717056024746,1.61234,3721.3,3720.1,0.05]
[1717056025239,0.29100122,3721.7,3720.1,1.66284]
[1717056025943,7.38,3722.2,3720.3,1.61277]
[1717056026196,1.61183,3722.5,3720.7,1.61255]
[1717056026360,1.61183,3722.5,3721.2,1.61234]
[1717056026558,1.61183,3722.5,3721.2,2.91023222]
[1717056026763,1.61183,3722.5,3721.3,0.29102322]
[1717056026970,7.38,3722.7,3721.3,0.29102322]
[1717056026971,6.2805,3723.5,3721.5,1.61222]
[1717056027175,0.58126923,3723.4,3721.9,1.61207]
[1717056027469,7.38,3723.7,3721.9,1.61207]
[1717056027470,8.67789222,3723.7,3722.0,1.45909922]
[1717056027855,7.38,3723.7,3722.1,1.61196]
[1717056028061,7.38,3723.7,3722.2,1.29789222]
[1717056029248,3.0,3724.2,3722.4,1.61184]
[1717056029459,3.0,3724.2,3722.0,0.161207]
[1717056029460,2.29789222,3724.1,3722.0,0.161207]
[1717056029786,2.29789222,3724.1,3721.4,6.2347]
[1717056029787,1.61142,3723.5,3722.1,2.90986222]
[1717056029986,1.61114,3724.1,3722.1,2.90986222]
[1717056030187,1.61114,3724.1,3722.6,1.61173]
[1717056030377,1.61114,3724.1,3722.7,1.29789222]
[1717056030573,1.61114,3724.1,3722.6,1.61173]
[1717056030776,1.61125,3723.9,3722.2,6.2242]
[1717056030989,1.61131,3723.7,3722.2,6.2242]
[1717056031466,1.61131,3723.7,3722.2,7.52209222]
[1717056032997,2.19217001,3724.3,3722.4,1.61183]
[1717056033197,2.19217001,3724.3,3722.2,6.2242]
[1717056033198,2.19217001,3724.3,3722.7,1.61172]
[1717056033399,0.5616664,3724.2,3722.8,1.58885344]
[1717056033769,1.61105,3724.3,3722.8,1.58885344]
[1717056034866,2.90894222,3724.3,3722.7,1.61172]
[1717056035111,1.61119,3724.0,3722.7,1.61172]
[1717056035820,0.58111145,3724.1,3722.7,1.61172]
[1717056035980,2.19203145,3724.6,3722.9,1.61163]
[1717056036508,3.48992367,3724.6,3722.9,1.61163]
[1717056036730,0.34899237,3724.5,3723.0,0.29095222]
[1717056037185,2.90881222,3724.6,3723.0,0.29095222]
[1717056037910,1.61092,3724.6,3723.1,2.90941222]
[1717056041513,0.58098683,3725.1,3723.1,9.08251222]
[1717056041718,4.61068,3725.2,3723.4,1.6114]
[1717056041886,1.61077,3725.0,3723.5,1.45903222]
[1717056043976,1.61077,3725.0,3723.5,0.16114]
[1717056044573,2.90866222,3725.0,3723.5,0.16114]
[1717056044768,1.61088,3724.7,3723.5,0.16114]
[1717056045722,1.61088,3724.7,3723.1,6.1731]
[1717056045902,1.61088,3724.7,3723.1,7.47099222]
[1717056046275,1.61108,3724.2,3723.0,0.29095222]
[1717056046506,1.6113,3723.7,3722.4,6.2409]
[1717056047485,1.61108,3724.3,3722.5,2.90968222]
[1717056047824,1.61108,3724.3,3722.7,1.61172]
[1717056047977,1.61108,3724.3,3722.8,1.29789222]
[1717056048394,1.61108,3724.3,3722.9,1.61161]
[1717056049032,1.61124,3723.9,3722.6,0.91505822]
[1717056049737,1.61124,3723.9,3722.7,1.29789222]
[1717056049935,1.61124,3723.9,3722.8,0.22129504]
[1717056050230,1.61124,3723.9,3722.8,1.51918726]
[1717056050427,1.61098,3724.5,3722.9,2.90953222]
[1717056050913,2.19206677,3724.5,3722.9,2.90953222]
[1717056051324,1.61098,3724.5,3722.9,2.90953222]
[1717056051497,1.61098,3724.5,3723.1,1.61155]
[1717056051817,1.61098,3724.5,3723.3,1.61146]
[1717056051993,1.61098,3724.5,3723.4,1.29789222]
[1717056053431,1.61072,3725.1,3723.5,1.61137]
[1717056053719,2.19165592,3725.1,3723.6,1.29789222]
[1717056053895,2.19165592,3725.1,3723.7,0.29092622]
[1717056055989,2.19165592,3725.1,3723.9,1.61119]
[1717056056187,1.61072,3725.1,3723.9,2.90908222]
[1717056056404,0.58093592,3725.2,3724.0,1.29789222]
[1717056057127,1.61046,3725.7,3724.1,1.6111]
[1717056057326,1.61046,3725.7,3724.2,1.58879144]
[1717056057327,5.19126061,3725.7,3724.2,1.58879144]
[1717056057528,0.58080061,3725.6,3724.2,1.29789222]
[1717056057748,1.61046,3725.7,3724.2,1.29789222]
[1717056058644,0.58080061,3725.8,3724.4,8.36717]
[1717056058842,1.61018,3726.3,3724.5,1.29789222]
[1717056059006,1.61018,3726.3,3724.7,1.61082]
[1717056059334,0.48269806,3726.2,3724.9,1.61075]
[1717056059635,1.61018,3726.3,3724.8,1.58876344]
[1717056059636,1.61018,3726.3,3725.2,6.5091]
[1717056059799,1.60995,3726.9,3725.3,1.29789222]
[1717056060201,1.60995,3726.9,3725.5,1.6105]
[1717056060395,1.60995,3726.9,3725.6,1.29789222]
[1717056061307,1.60995,3726.9,3725.7,1.6104]
[1717056061516,0.58061942,3727.4,3725.8,7.84098503]
[1717056061713,0.58061942,3727.7,3726.0,1.29789222]
[1717056062031,0.58061942,3728.1,3726.4,1.61012]
[1717056062230,1.60938,3728.2,3726.6,8.19264]
[1717056062448,0.58037969,3728.1,3726.7,1.29789222]
[1717056062624,1.60938,3728.2,3726.8,0.94905322]
[1717056062822,1.60938,3728.2,3726.8,2.24694544]
[1717056063159,1.60938,3728.2,3726.6,8.19264]
[1717056063310,1.60938,3728.2,3726.7,1.29789222]
[1717056064245,4.60938,3728.2,3726.7,1.29789222]
[1717056064549,1.60956,3727.8,3726.6,6.5826]
[1717056064754,1.60956,3727.8,3726.6,7.88049222]
[1717056064912,1.60956,3727.8,3726.7,1.29789222]
[1717056065111,3.0,3728.3,3726.7,1.29789222]
[1717056065314,1.60928,3728.4,3726.7,4.29789222]
[1717056065534,1.60928,3728.4,3726.8,1.60995]
[1717056065847,1.60928,3728.4,3726.9,1.24904422]
[1717056065848,2.90717222,3728.4,3726.9,1.24904422]
[1717056066143,2.636,3727.0,3725.3,6.4034]
[1717056066298,2.636,3725.7,3725.3,6.4034]
[1717056066500,2.636,3725.7,3724.6,6.4034]
[1717056066711,1.61051,3725.6,3724.6,6.4034]
[1717056066912,2.41856335,3725.6,3724.6,6.4034]
[1717056067175,2.41856335,3725.6,3724.1,6.4034]
[1717056067176,2.636,3725.2,3724.1,6.4034]
[1717056067441,1.6107,3725.1,3724.1,6.4034]
[1717056067801,2.636,3724.7,3723.5,1.61138]
[1717056068033,2.636,3724.7,3723.4,6.3608]
[1717056068034,1.611,3724.4,3723.4,6.3608]
[1717056068264,2.636,3724.2,3722.7,6.3608]
[1717056068413,1.611,3724.4,3722.7,6.3608]
[1717056069234,2.0942,3724.4,3722.7,6.3608]
[1717056069399,3.39209222,3724.4,3722.7,6.3608]
[1717056069600,1.61116,3724.1,3722.7,6.3608]
[1717056071556,1.61116,3724.1,3722.8,1.29789222]
[1717056076279,1.61116,3724.1,3722.2,3.0]
[1717056076424,1.61116,3724.1,3722.3,1.29789222]
[1717056076628,1.61116,3724.1,3722.4,0.59098722]
[1717056076952,1.61116,3724.1,3722.5,1.29789222]
[1717056077867,1.61116,3724.1,3722.4,0.59098722]
[1717056078068,1.61116,3724.1,3722.5,1.29789222]
[1717056080131,1.61139,3723.5,3722.4,0.59098722]
[1717056080468,1.61114,3724.1,3722.5,1.65699094]
[1717056080630,1.61114,3724.1,3722.5,1.29789222]
[1717056081465,3.0,3724.3,3722.2,3.0]
[1717056081466,1.61087,3724.7,3723.0,1.29789222]
[1717056081975,1.61111,3724.2,3723.0,1.29789222]
[1717056082279,1.61132,3723.7,3722.3,3.0]
[1717056082490,1.61132,3723.7,3722.4,1.75908922]
[1717056082974,1.61132,3723.7,3722.4,0.461197]
[1717056083289,1.61132,3723.7,3722.0,0.5]
[1717056083290,1.61155,3723.2,3722.0,0.5]
[1717056084376,1.61155,3723.2,3722.1,1.29789222]
[1717056085595,1.61155,3723.2,3722.0,0.5]
[1717056086309,1.61155,3723.2,3722.1,1.29789222]
[1717056086469,1.61155,3723.2,3722.2,0.17978922]
[1717056086670,1.61155,3723.2,3722.2,1.47768144]
[1717056087782,7.38,3723.6,3722.3,1.29789222]
[1717056087993,7.38,3723.6,3722.4,6.3787]
[1717056088308,1.61139,3723.5,3722.2,0.17978922]
[1717056088460,1.61139,3723.5,3722.3,0.52917892]
[1717056089416,1.61139,3723.5,3722.0,2.112]
[1717056089417,1.6119,3722.4,3722.0,0.5]
[1717056089908,2.636,3722.5,3722.0,0.5]
[1717056089909,1.61194,3722.2,3722.0,0.5]
[1717056090615,4.61194,3722.2,3722.0,0.5]
[1717056090964,1.29789222,3722.1,3722.0,0.5]
[1717056091177,1.65844854,3722.1,3722.0,0.5]
[1717056091602,5.20844854,3722.1,3722.0,0.5]
[1717056092268,8.84444854,3722.1,3722.0,0.5]
[1717056092985,6.20844854,3722.1,3722.0,0.5]
[1717056093590,6.20844854,3722.1,3720.1,0.05]
[1717056093892,1.61252,3720.9,3720.1,0.41665788]
[1717056094083,1.61265,3720.6,3720.1,0.41665788]
[1717056094277,1.61265,3720.6,3720.1,0.05]
[1717056096173,1.6124,3721.2,3720.1,0.05]
[1717056096373,1.6124,3721.2,3720.2,1.29789222]
[1717056096801,4.2484,3721.2,3720.2,1.29789222]
[1717056097081,4.60895632,3721.2,3720.1,0.05]
[1717056097274,4.2484,3721.2,3720.1,1.34789222]
[1717056098191,1.61261,3720.7,3720.1,0.05]
[1717056098401,4.24861,3720.7,3720.1,0.05]
[1717056098743,1.61261,3720.7,3720.1,0.05]
[1717056098881,3.0,3721.1,3720.1,0.05]
[1717056099213,3.0,3721.1,3720.1,0.5555]
[1717056099418,7.38,3721.4,3720.2,1.29789222]
[1717056099618,7.38,3721.4,3720.1,0.5555]
[1717056099914,7.38,3721.4,3720.2,1.29789222]
[1717056100122,7.38,3721.4,3720.3,0.68533922]
[1717056100311,3.0,3721.8,3720.4,1.29789222]
[1717056100312,1.61221,3721.6,3720.4,1.29789222]
[1717056100683,1.61221,3721.6,3720.4,2.91060222]
[1717056100878,1.61197,3722.2,3720.8,1.61254]
[1717056101081,1.61197,3722.2,3720.9,1.45914622]
[1717056101526,1.61197,3722.2,3721.0,1.61244]
[1717056101802,1.61197,3722.2,3721.1,1.29789222]
[1717056102434,2.636,3722.4,3721.1,1.29789222]